bitfinex/quotes_ETHUSD_20240710
["timestamp","ask_amount","ask_price","bid_price","bid_amount"]
[1720579626762,7.46,3074.8,3073.0,2.308]
[1720579626947,12.2,3075.3,3073.1,2.95106548]
[1720579626948,0.05521295,3073.4,3073.1,2.95106548]
[1720579627154,2.3988,3074.1,3073.1,2.95106548]
[1720579627155,2.3988,3074.1,3073.2,3.0]
[1720579627357,2.3988,3074.1,3073.3,1.21017064]
[1720579627894,2.3988,3074.1,3073.3,1.14510655]
[1720579629278,2.3988,3074.1,3073.3,1.21017009]
[1720579629481,2.4201,3074.8,3073.4,2.421]
[1720579629653,0.54201,3074.7,3073.5,0.97817559]
[1720579629853,0.05359311,3074.7,3073.5,3.97817559]
[1720579632343,2.4201,3074.6,3073.5,3.55]
[1720579632579,0.05376214,3074.5,3073.5,3.55]
[1720579634961,0.34062484,3074.4,3073.5,3.55]
[1720579635261,0.05389788,3074.3,3073.5,3.55]
[1720579636360,0.05389788,3074.3,3073.5,3.0]
[1720579636361,2.4521,3074.2,3073.5,3.0]
[1720579636560,2.4521,3074.2,3073.0,9.9115]
[1720579636561,0.2555998,3074.1,3073.1,3.0]
[1720579636756,0.2555998,3074.1,3073.2,0.55]
[1720579638162,0.05000008,3074.0,3073.2,0.55]
[1720579638395,0.32577007,3074.0,3073.1,0.55]
[1720579638602,0.05379261,3073.9,3073.1,0.55]
[1720579639879,0.10379269,3073.9,3073.1,3.55]
[1720579641803,0.05379261,3073.9,3073.1,3.55]
[1720579641979,0.05379261,3073.9,3073.1,4.14915]
[1720579643299,2.4728,3073.8,3072.7,12.38300687]
[1720579643498,0.05379261,3073.9,3072.8,3.06507663]
[1720579643804,2.4728,3074.1,3072.8,3.0]
[1720579643970,0.05358483,3073.8,3072.9,1.53830069]
[1720579644169,0.24728,3074.0,3072.9,1.53830069]
[1720579644370,0.05358483,3073.7,3072.8,3.0]
[1720579644592,0.24728,3074.0,3072.8,3.0]
[1720579645069,2.53298483,3073.9,3072.8,3.0]
[1720579645281,0.05000008,3073.8,3072.8,3.0]
[1720579645475,0.0535599,3073.7,3072.9,0.55]
[1720579645800,2.52940008,3073.9,3072.9,0.55]
[1720579645986,0.0535599,3073.6,3072.9,0.55]
[1720579646187,2.4794,3073.9,3072.9,0.55]
[1720579646577,0.10355998,3073.8,3072.8,0.55]
[1720579646815,0.258296,3073.7,3072.8,0.55]
[1720579647109,0.30829608,3073.7,3072.8,0.55]
[1720579647309,0.0535599,3073.6,3072.8,0.55]
[1720579650390,0.39421405,3073.6,3072.8,0.55]
[1720579652709,0.39421405,3073.6,3073.1,0.975]
[1720579654732,0.44421413,3073.6,3073.1,0.975]
[1720579654934,0.44421413,3073.6,3072.9,0.975]
[1720579655827,0.39421405,3073.6,3072.9,0.975]
[1720579657233,0.39421405,3073.6,3072.9,2.10033]
[1720579657390,0.39421405,3073.6,3073.1,0.975]
[1720579660618,0.39421405,3073.6,3072.9,0.975]
[1720579661918,0.39421405,3073.6,3073.1,0.975]
[1720579667428,0.44421413,3073.6,3072.8,0.55]
[1720579667615,0.44421413,3073.6,3072.9,0.975]
[1720579668568,0.05000008,3073.5,3072.9,0.975]
[1720579668865,2.42575449,3073.5,3072.8,3.0]
[1720579669062,2.42575449,3073.5,3072.9,0.975]
[1720579669264,0.05275449,3073.5,3072.9,0.975]
[1720579669469,2.3373,3073.8,3073.1,0.975]
[1720579669640,0.05271569,3073.4,3073.1,0.975]
[1720579669971,0.05269909,3073.3,3073.1,0.975]
[1720579670119,0.23373,3073.7,3072.9,0.975]
[1720579670350,0.05269909,3073.2,3072.9,0.975]
[1720579670550,0.23373,3073.7,3072.9,0.975]
[1720579670765,0.05269909,3073.1,3072.9,0.975]
[1720579671053,0.257103,3073.6,3072.9,0.975]
[1720579671450,0.05268246,3073.5,3072.9,0.975]
[1720579671989,2.3373,3073.8,3072.9,0.975]
[1720579672197,0.05268246,3073.4,3072.9,0.975]
[1720579672496,2.3373,3073.8,3072.9,0.975]
[1720579672650,0.05268246,3073.3,3072.9,0.975]
[1720579672989,2.66853,3073.8,3072.9,0.975]
[1720579673193,0.05268246,3073.2,3072.9,0.975]
[1720579673348,2.66853,3073.8,3072.9,0.975]
[1720579673550,0.05268246,3073.1,3072.9,0.975]
[1720579673787,2.66853,3073.8,3072.9,0.975]
[1720579673989,0.05268246,3073.0,3072.9,0.975]
[1720579674171,2.66853,3073.8,3072.9,1.525]
[1720579674379,0.05268246,3073.0,3072.9,1.525]
[1720579674693,2.66853,3073.8,3072.9,1.525]
[1720579675192,0.05268246,3073.7,3072.9,1.525]
[1720579677396,0.05268246,3073.7,3072.9,0.55]
[1720579677591,0.05268246,3073.7,3073.1,0.975]
[1720579682812,0.05268246,3073.7,3073.6,0.975]
[1720579683023,0.05268246,3073.7,3073.6,3.4644]
[1720579683170,2.4677,3074.4,3073.6,7.0144]
[1720579683367,2.4677,3074.4,3073.8,0.975]
[1720579685969,3.4671,3074.8,3073.8,0.975]
[1720579686185,0.34671,3074.7,3073.8,0.975]
[1720579686663,0.34671,3074.7,3073.6,3.55]
[1720579686664,3.51710008,3074.6,3073.6,3.55]
[1720579686882,0.975,3074.0,3073.2,7.47]
[1720579687082,2.4921,3073.9,3073.2,7.47]
[1720579687366,0.34671,3073.8,3073.2,7.47]
[1720579687563,2.4003,3073.7,3072.8,7.47]
[1720579687763,3.42530008,3073.7,3072.7,0.975]
[1720579689057,3.3753,3073.7,3072.7,0.975]
[1720579689326,2.4003,3073.7,3072.9,0.975]
[1720579691711,2.4003,3073.6,3072.5,3.0]
[1720579691916,2.4301,3073.4,3072.5,0.975]
[1720579692065,2.77061,3073.3,3072.5,0.975]
[1720579692273,0.05000008,3073.2,3072.5,0.975]
[1720579692488,2.4301,3073.1,3072.5,0.975]
[1720579692712,2.48107726,3073.1,3072.4,7.47]
[1720579693308,0.05000008,3073.0,3072.4,7.47]
[1720579693510,3.433,3073.4,3072.0,9.63]
[1720579693511,2.48101076,3072.9,3072.0,7.47]
[1720579694477,2.486,3072.8,3072.0,7.47]
[1720579694674,0.25369108,3072.7,3072.0,7.47]
[1720579694976,0.30454361,3072.7,3072.0,7.47]
[1720579696510,0.30454361,3072.7,3071.5,9.63]
[1720579696511,0.30454361,3072.7,3071.6,7.47]
[1720579696717,0.30454361,3072.7,3071.7,3.55]
[1720579696916,0.30454361,3072.7,3071.7,0.55]
[1720579697117,0.05085253,3072.7,3071.7,0.06510226]
[1720579697315,0.05085253,3072.7,3071.8,0.61510226]
[1720579697521,0.05085253,3072.7,3071.8,0.06510226]
[1720579699332,0.05085253,3072.7,3071.8,2.51950226]
[1720579699535,2.4802,3073.1,3071.9,3.80195023]
[1720579700490,0.05073609,3073.0,3071.9,3.80195023]
[1720579700813,0.05073609,3073.0,3071.9,3.86704017]
[1720579700990,0.05073609,3073.0,3072.0,0.86614402]
[1720579701186,0.05073609,3073.0,3072.1,0.55]
[1720579701693,0.05073609,3073.0,3072.1,0.61508995]
[1720579703128,0.05073609,3073.0,3072.1,0.55]
[1720579709339,2.2808,3072.9,3072.1,0.06508997]
[1720579709639,2.33146405,3072.9,3072.1,0.39679399]
[1720579710003,2.33146405,3072.9,3072.1,0.06508997]
[1720579710503,2.33146405,3072.9,3072.2,0.55]
[1720579710701,2.33146405,3072.9,3072.1,0.55]
[1720579710940,2.33146405,3072.9,3072.2,0.06509]
[1720579711140,2.33146405,3072.9,3072.3,0.55]
[1720579711705,2.33146405,3072.9,3072.1,0.55]
[1720579712140,2.33146405,3072.9,3071.9,0.31704026]
[1720579712340,2.33146405,3072.9,3072.0,0.87519502]
[1720579712714,0.975,3072.8,3072.0,0.87519502]
[1720579712907,0.05064465,3072.7,3072.0,0.87519502]
[1720579713108,0.975,3072.8,3072.0,0.87519502]
[1720579713339,0.05064465,3072.7,3072.0,0.55]
[1720579713547,1.30058,3072.8,3071.8,3.975]
[1720579713753,2.3472,3072.7,3071.8,3.975]
[1720579714050,0.975,3072.6,3071.8,3.0]
[1720579714434,0.05060028,3072.5,3071.6,1.04009986]
[1720579714639,0.05060028,3072.5,3071.6,1.49882185]
[1720579714841,2.3472,3072.7,3071.7,0.55]
[1720579715163,0.05060028,3072.6,3071.7,0.55]
[1720579716153,0.05060028,3072.6,3071.8,0.06509983]
[1720579716314,0.05060028,3072.6,3071.9,0.55]
[1720579717650,0.05060028,3072.6,3072.0,0.06509666]
[1720579717963,0.05060028,3072.6,3071.9,0.61509667]
[1720579718655,2.3472,3072.7,3071.9,0.61509667]
[1720579719015,2.3472,3072.7,3072.0,0.06509662]
[1720579719215,2.3472,3072.7,3071.9,0.55]
[1720579719553,2.3472,3072.7,3072.0,0.06509663]
[1720579719750,2.3472,3072.7,3071.8,0.61509668]
[1720579720055,2.3472,3072.7,3071.8,1.11997855]
[1720579720255,2.3472,3072.7,3071.8,1.05488187]
[1720579722758,2.3472,3072.7,3071.8,1.11997642]
[1720579723767,2.3472,3072.7,3071.9,2.4991]
[1720579723972,2.3472,3072.7,3072.0,0.55]
[1720579724120,2.3472,3072.7,3072.1,0.60491]
[1720579724320,2.3472,3072.7,3072.2,0.55]
[1720579724517,2.3472,3072.7,3072.2,0.61509008]
[1720579724721,2.4673,3073.4,3072.2,0.55]
[1720579724961,2.4673,3073.4,3072.3,0.06508856]
[1720579725173,0.05054207,3073.3,3072.4,0.55]
[1720579725320,0.05054207,3073.3,3072.2,0.55]
[1720579728043,0.05054207,3073.3,3072.3,0.06508495]
[1720579728370,0.05054207,3073.3,3072.4,0.55]
[1720579728667,0.05054207,3073.3,3072.5,0.06507799]
[1720579728829,0.05054207,3073.3,3072.6,0.8404778]
[1720579729529,3.0,3074.4,3072.7,0.065078]
[1720579729530,2.4629,3073.8,3072.7,0.065078]
[1720579729729,2.4629,3073.8,3072.9,2.3633]
[1720579729956,0.05070284,3073.7,3073.0,0.29133]
[1720579730232,2.4629,3073.8,3073.0,0.84133]
[1720579730576,2.4629,3073.8,3073.1,0.06506612]
[1720579730783,2.4629,3073.8,3073.2,0.55]
[1720579732229,2.3222,3074.7,3073.3,0.06506614]
[1720579732457,0.0490209,3073.7,3073.4,0.55]
[1720579732661,2.2563,3074.5,3073.4,0.55]
[1720579733065,0.04933132,3074.4,3073.4,0.55]
[1720579734131,2.2977,3074.3,3073.4,0.55]
[1720579734337,2.53740314,3074.3,3073.1,0.55]
[1720579734537,0.04933409,3074.2,3073.1,0.55]
[1720579734847,2.53740314,3074.3,3073.1,0.55]
[1720579735045,0.38998429,3074.1,3073.1,0.55]
[1720579735248,0.3406502,3074.1,3073.2,0.384133]
[1720579735503,0.3406502,3074.1,3073.3,0.55]
[1720579736460,0.3406502,3074.1,3073.3,0.61506315]
[1720579737339,0.3406502,3074.1,3073.3,0.55]
[1720579737783,0.3406502,3074.1,3073.3,0.61506315]
[1720579738363,2.2977,3074.0,3073.3,0.55]
[1720579738577,2.2977,3074.0,3073.4,0.3934133]
[1720579738880,2.2977,3074.0,3073.5,0.55]
[1720579743283,2.2977,3074.0,3073.5,0.61506293]
[1720579743776,0.3406502,3074.1,3073.5,0.61506293]
[1720579743988,0.3406502,3074.1,3073.6,0.32954762]
[1720579744200,0.3406502,3074.1,3073.7,0.61505894]
[1720579744371,0.3406502,3074.1,3073.8,0.06505897]
[1720579744696,0.04954468,3074.0,3073.8,0.06505897]
[1720579744865,0.04954468,3074.0,3073.9,0.55]
[1720579746101,0.3406502,3074.1,3073.9,3.83815]
[1720579749473,0.3406502,3074.1,3073.9,3.28815]
[1720579749812,0.3406502,3074.1,3073.6,0.32954762]
[1720579749813,0.3406502,3074.1,3073.6,3.32954762]
[1720579749969,0.3406502,3074.1,3073.7,0.55]
[1720579750358,0.3406502,3074.1,3073.8,0.06505548]
[1720579750559,0.3406502,3074.1,3073.9,0.55]
[1720579750959,0.3406502,3074.1,3073.7,0.55]
[1720579751156,0.3406502,3074.1,3073.8,0.38795476]
[1720579751371,0.3406502,3074.1,3073.9,0.55]
[1720579752599,0.3406502,3074.1,3073.6,3.32954762]
[1720579752895,0.3406502,3074.1,3073.6,0.32954762]
[1720579753499,2.495,3074.2,3073.6,0.32954762]
[1720579754076,2.495,3074.2,3073.7,0.33295476]
[1720579754508,2.495,3074.6,3073.8,0.6150588]
[1720579754804,2.495,3074.6,3073.8,3.6150588]
[1720579755016,2.495,3074.6,3073.8,3.55]
[1720579755168,2.495,3074.6,3073.8,4.20535024]
[1720579755872,0.04802338,3074.5,3073.8,4.20535024]
[1720579756081,0.04802338,3074.5,3073.8,0.55]
[1720579756288,0.04802338,3074.5,3073.7,0.55]
[1720579758117,2.495,3074.4,3073.5,3.0]
[1720579758325,2.495,3074.4,3073.6,0.55]
[1720579758524,2.74930234,3074.4,3073.6,0.55]
[1720579759300,2.495,3074.4,3073.6,0.6150587]
[1720579760333,2.495,3074.4,3073.7,2.341]
[1720579760480,2.495,3074.4,3073.8,0.55]
[1720579760685,2.495,3074.4,3074.1,0.974]
[1720579760930,0.04802892,3074.3,3074.1,0.974]
[1720579762838,2.495,3074.6,3074.1,0.974]
[1720579763412,0.04804831,3074.5,3074.1,0.974]
[1720579763821,0.04804831,3074.5,3074.4,0.974]
[1720579764357,0.04804831,3074.5,3073.8,3.03875366]
[1720579764358,0.04804831,3074.5,3074.0,0.974]
[1720579766452,2.2829,3074.4,3073.8,0.974]
[1720579766653,2.33095108,3074.4,3073.6,0.06505365]
[1720579766952,2.2829,3074.4,3073.5,5.3391579]
[1720579767148,2.2829,3074.4,3073.6,1.27441]
[1720579767657,2.2829,3074.4,3073.7,0.55]
[1720579768349,2.2829,3074.4,3073.6,1.33946791]
[1720579768713,2.2829,3074.4,3073.7,0.43394679]
[1720579769552,2.2829,3074.4,3073.6,1.27441]
[1720579770726,2.2829,3074.4,3073.7,0.55]
[1720579771127,2.2829,3074.4,3073.7,3.55]
[1720579771347,2.2829,3074.4,3073.7,3.61505504]
[1720579771936,2.2829,3074.4,3073.7,3.55]
[1720579772121,2.2829,3074.4,3073.8,0.728941]
[1720579772323,2.2829,3074.4,3073.9,0.55]
[1720579775666,2.2829,3074.4,3073.7,3.0]
[1720579775869,2.2829,3074.4,3073.6,1.27441]
[1720579776228,0.04640885,3074.3,3073.6,1.27441]
[1720579776563,0.59974433,3074.3,3073.6,0.06506372]
[1720579776744,2.4163,3074.5,3073.6,0.06506372]
[1720579776943,2.4163,3074.5,3073.5,5.3535]
[1720579777138,0.04640885,3074.4,3073.6,1.28235]
[1720579777341,0.59977251,3074.4,3073.6,1.34740747]
[1720579777772,0.59977251,3074.4,3073.7,0.55]
[1720579777953,0.59977251,3074.4,3073.7,1.27509075]
[1720579778269,0.59977251,3074.4,3073.7,4.27509075]
[1720579780643,0.72208351,3074.4,3073.7,4.27509075]
[1720579781046,0.72206321,3074.4,3073.7,4.27509075]
[1720579781254,0.04640885,3074.4,3073.7,4.27509075]
[1720579781456,0.72205711,3074.4,3073.8,0.56224982]
[1720579781669,0.04640885,3074.4,3073.9,0.61505455]
[1720579781939,2.2759,3075.1,3074.0,2.4685]
[1720579782234,0.72133783,3075.0,3074.1,0.85185]
[1720579782452,0.72133783,3075.0,3074.1,3.85185]
[1720579782657,0.72133783,3075.0,3074.2,0.06504415]
[1720579782976,0.34064657,3075.6,3074.3,1.17548942]
[1720579782977,2.4482,3075.5,3074.3,1.17548942]
[1720579783197,0.67528317,3075.4,3074.5,2.451]
[1720579783397,0.71827933,3075.4,3074.6,0.06504182]
[1720579783765,1.06899192,3075.4,3074.6,0.06504182]
[1720579783962,0.67526057,3075.3,3074.6,0.06504182]
[1720579784161,1.06896932,3075.4,3074.6,0.06504182]
[1720579784388,1.02597316,3075.4,3074.6,0.06504182]
[1720579784697,0.04299616,3075.3,3074.6,0.06504182]
[1720579784857,0.04299616,3075.3,3074.5,2.451]
[1720579785064,0.04299616,3075.3,3074.5,2.87869076]
[1720579788605,0.04299616,3075.3,3074.6,0.974]
[1720579790388,0.04299616,3075.3,3074.5,2.87869075]
[1720579790389,0.04299616,3075.3,3074.8,0.974]
[1720579790997,2.4482,3075.5,3074.8,0.974]
[1720579791185,0.0430377,3075.2,3074.8,0.974]
[1720579791386,0.974,3075.8,3075.0,0.974]
[1720579791387,2.2792,3075.8,3075.0,0.974]
[1720579791582,0.67516505,3075.7,3075.0,3.2437]
[1720579791820,0.71820275,3075.7,3075.0,3.2437]
[1720579792116,0.0430377,3075.7,3075.0,3.2437]
[1720579793627,0.0430377,3075.7,3075.0,3.56807]
[1720579793922,0.67508186,3075.9,3075.1,0.55]
[1720579794231,0.04324263,3075.6,3075.1,0.55]
[1720579794522,0.04348071,3075.5,3075.1,0.55]
[1720579794889,1.36790088,3075.9,3075.1,0.55]
[1720579795085,0.04348071,3075.8,3075.1,0.55]
[1720579797224,0.04348071,3075.8,3075.0,2.2697]
[1720579797896,0.04348071,3075.7,3075.0,2.2697]
[1720579798131,0.22792,3075.9,3075.0,2.2697]
[1720579798329,0.04348071,3075.6,3075.0,2.2697]
[1720579798494,0.22792,3075.9,3075.0,2.2697]
[1720579798833,0.29419271,3075.8,3075.0,2.2697]
[1720579800827,0.29419271,3075.8,3074.8,3.0]
[1720579801043,2.33470008,3075.7,3074.8,3.0]
[1720579801335,0.04348625,3075.6,3074.8,3.0]
[1720579802189,0.04348625,3075.6,3074.9,2.3881]
[1720579805491,0.04348625,3075.6,3075.0,0.55]
[1720579805700,0.67511363,3076.0,3075.0,0.55]
[1720579805905,0.04345854,3075.9,3075.0,0.61503043]
[1720579806949,0.04345854,3075.9,3075.0,0.55]
[1720579809650,0.04345854,3075.9,3074.9,2.3881]
[1720579809825,2.4762,3075.8,3074.8,3.0]
[1720579810021,0.25196585,3075.7,3074.8,3.0]
[1720579813876,2.4657,3075.6,3074.7,7.47]
[1720579814162,0.04343363,3075.5,3074.7,7.47]
[1720579815357,0.04343363,3075.5,3074.6,3.4]
[1720579815574,0.04343363,3075.5,3074.7,3.0]
[1720579815735,3.4397,3075.6,3074.7,3.0]
[1720579816089,0.34397,3075.5,3074.7,3.0]
[1720579816232,0.04343086,3075.4,3074.7,3.0]
[1720579816844,0.04343086,3075.4,3074.8,0.974]
[1720579817047,2.4657,3075.6,3074.8,0.974]
[1720579817373,2.4657,3075.6,3074.7,3.0]
[1720579817374,1.01743086,3075.5,3074.7,3.0]
[1720579817672,1.26400086,3075.5,3074.7,3.0]
[1720579818477,1.26400086,3075.5,3074.3,7.47]
[1720579818478,2.2712,3074.9,3074.3,7.47]
[1720579818661,1.01736445,3074.8,3073.9,7.47]
[1720579818860,1.01736445,3074.8,3073.9,8.55165]
[1720579819332,1.01736445,3074.8,3073.9,7.47]
[1720579819333,1.69302361,3074.8,3073.9,7.47]
[1720579819644,1.01736445,3074.8,3073.9,7.47]
[1720579820049,1.6930075,3074.8,3073.9,8.444]
[1720579820490,0.39642075,3074.7,3073.9,8.444]
[1720579821782,0.974,3074.8,3073.9,8.444]
[1720579821952,2.3372,3075.3,3074.7,0.974]
[1720579822349,0.72540086,3075.2,3074.5,0.974]
[1720579822555,0.72540086,3075.2,3074.3,0.974]
[1720579822556,0.30626009,3075.2,3074.3,0.974]
[1720579822765,3.3112,3075.3,3074.4,0.55]
[1720579824378,2.3372,3075.3,3074.4,0.55]
[1720579824591,3.3112,3075.3,3074.4,0.55]
[1720579825305,0.67537748,3075.2,3074.4,0.55]
[1720579826167,0.67537748,3075.2,3074.5,0.974]
[1720579826354,2.3372,3075.3,3074.7,0.974]
[1720579826565,2.3372,3075.3,3074.7,1.30035]
[1720579827665,2.3372,3075.3,3074.7,0.974]
[1720579827906,0.67534933,3075.2,3074.5,0.974]
[1720579828404,0.67534933,3075.2,3074.4,0.55]
[1720579829394,2.4683,3075.1,3074.3,3.0]
[1720579829595,2.4683,3075.1,3073.7,2.3008]
[1720579829596,0.98971426,3075.0,3074.1,0.974]
[1720579829774,0.67534933,3075.0,3074.1,0.974]
[1720579829975,0.04166684,3074.9,3074.3,0.974]
[1720579831515,0.08501549,3074.9,3074.3,0.974]
[1720579832275,0.40789796,3074.9,3074.1,0.974]
[1720579833418,2.3428,3074.8,3074.1,0.974]
[1720579833774,0.0849295,3074.7,3074.1,0.974]
[1720579834177,2.3428,3074.8,3074.1,0.974]
[1720579834403,2.3428,3074.8,3074.1,2.1184]
[1720579834711,0.0849295,3074.7,3074.1,2.1184]
[1720579834878,2.3428,3074.8,3074.1,2.1184]
[1720579835079,0.0849295,3074.7,3074.1,2.1184]
[1720579835279,2.3428,3074.8,3074.1,2.1184]
[1720579835520,0.0849295,3074.7,3074.2,0.51184]
[1720579835715,2.3254,3075.2,3074.5,0.974]
[1720579835926,0.0849295,3075.1,3074.7,0.974]
[1720579836078,6.0,3076.0,3074.7,0.974]
[1720579836079,2.2758,3075.7,3074.7,0.974]
[1720579836277,0.75738573,3075.6,3074.7,0.974]
[1720579836514,1.1581043,3075.6,3074.7,0.974]
[1720579836820,0.67529517,3075.5,3074.7,0.974]
[1720579837032,0.48276042,3075.6,3074.7,0.974]
[1720579837033,1.15805559,3075.6,3074.7,0.974]
[1720579837183,0.08204742,3075.4,3074.7,0.974]
[1720579837517,1.07601374,3075.6,3074.7,0.974]
[1720579837518,0.08204742,3075.3,3074.7,0.974]
[1720579837723,0.67529517,3075.5,3074.7,0.974]
[1720579837878,0.08204742,3075.4,3074.7,0.974]
[1720579838079,0.08204742,3075.4,3074.8,0.06504036]
[1720579838290,0.08204742,3075.4,3075.2,0.974]
[1720579838511,2.4754,3076.0,3075.2,0.974]
[1720579838676,2.4754,3076.0,3075.2,0.06502838]
[1720579838677,0.07686303,3075.9,3075.2,0.06502838]
[1720579838878,0.07686303,3075.9,3075.2,0.61722122]
[1720579839323,0.07686303,3075.9,3075.2,0.55219284]
[1720579842133,0.07686303,3075.9,3075.2,0.6172213]
[1720579844520,0.07686303,3075.9,3075.3,0.06502562]
[1720579845688,0.07686303,3075.9,3075.3,0.36172185]
[1720579848750,2.2665,3075.8,3075.1,3.0]
[1720579848908,0.07699935,3075.7,3074.5,2.3786]
[1720579849116,2.2665,3075.8,3074.6,0.55]
[1720579849349,2.54049412,3075.7,3074.6,0.78786]
[1720579849513,2.54049412,3075.7,3074.6,0.55]
[1720579851209,2.54049412,3075.7,3074.6,3.55]
[1720579852931,0.07719412,3075.7,3074.7,2.4516]
[1720579853244,2.4016,3076.0,3074.8,0.55]
[1720579853540,0.07708285,3075.9,3074.8,4.15016]
[1720579854002,0.07708285,3075.9,3074.9,0.06502806]
[1720579854203,0.07708285,3075.9,3075.0,3.0016]
[1720579854409,0.07708285,3075.9,3075.1,3.30666281]
[1720579854623,2.4016,3076.3,3075.2,0.55]
[1720579855147,0.07712455,3076.2,3075.2,0.55]
[1720579856662,0.12712463,3076.2,3075.2,0.55]
[1720579856953,2.4016,3076.1,3075.2,0.55]
[1720579857142,0.25287246,3076.0,3075.2,0.55]
[1720579857313,0.07712455,3075.9,3074.9,0.55]
[1720579859315,0.07623178,3075.9,3074.9,0.55]
[1720579861540,2.4016,3075.8,3074.9,0.55]
[1720579861722,0.07709479,3075.7,3074.9,0.55]
[1720579861928,2.4016,3075.8,3075.0,0.415016]
[1720579862142,0.07709479,3075.7,3075.1,0.55]
[1720579862326,0.07709479,3075.7,3075.1,0.61502602]
[1720579863154,0.07709479,3075.7,3075.6,2.336]
[1720579863463,2.4016,3076.7,3075.6,2.336]
[1720579863464,2.4016,3076.7,3075.6,3.1196]
[1720579863620,2.4016,3076.7,3075.7,3.615011]
[1720579863820,2.4016,3076.7,3075.8,0.065011]
[1720579864020,2.4016,3076.7,3075.9,0.55]
[1720579865258,2.4016,3076.7,3075.9,0.9115011]
[1720579865449,0.06968846,3076.6,3075.9,0.9115011]
[1720579865650,0.06968846,3076.6,3075.9,0.97651209]
[1720579865834,2.4016,3076.7,3075.9,3.97651209]
[1720579866066,2.4016,3076.7,3076.0,0.62604121]
[1720579866277,2.4016,3076.7,3076.1,0.55]
[1720579867164,6.432,3077.5,3076.1,0.55]
[1720579867165,2.4458,3077.0,3076.1,0.55]
[1720579867360,0.0696829,3076.9,3076.1,0.55]
[1720579868194,0.0696829,3076.9,3076.1,0.61500671]
[1720579868494,0.0696829,3076.9,3076.2,0.35770479]
[1720579869376,2.2671,3077.3,3076.2,0.35770479]
[1720579869558,0.0696829,3076.8,3076.2,0.35770479]
[1720579869753,2.2671,3077.3,3076.2,0.35770479]
[1720579869974,0.0696829,3077.2,3076.3,0.06500395]
[1720579870267,0.0696829,3077.2,3076.2,0.35770479]
[1720579870475,0.0696829,3077.2,3076.3,0.39727084]
[1720579872055,0.0696829,3077.2,3076.2,0.35770479]
[1720579872056,2.4214,3077.1,3076.2,0.35770479]
[1720579872257,2.4214,3077.1,3076.1,0.55]
[1720579872564,0.0696829,3077.0,3076.1,0.55]
[1720579874502,2.4218,3077.4,3076.2,2.3339]
[1720579874686,2.4218,3077.4,3076.3,0.28839]
[1720579874999,0.070036,3077.3,3076.3,0.28839]
[1720579875413,0.070036,3077.3,3076.3,0.35339563]
[1720579875610,0.070036,3077.3,3076.4,0.55]
[1720579875897,0.070036,3077.3,3076.5,0.06500119]
[1720579876112,2.4218,3077.4,3076.5,0.06500119]
[1720579876401,2.2723,3077.8,3076.5,0.06500119]
[1720579876604,0.0700082,3077.3,3076.5,0.06500119]
[1720579876784,2.2723,3077.8,3076.5,0.06500119]
[1720579876987,0.0700082,3077.2,3076.5,0.06500119]
[1720579877156,2.2723,3077.8,3076.5,0.06500119]
[1720579877394,0.0700082,3077.7,3076.5,0.06500119]
[1720579877593,0.0700082,3077.7,3076.6,0.55]
[1720579878093,0.0700082,3077.7,3076.7,2.3882]
[1720579883135,0.0700082,3077.7,3076.4,2.4384]
[1720579883136,2.2571,3077.5,3076.4,2.4384]
[1720579883339,2.2571,3077.5,3076.4,5.4384]
[1720579883340,0.23071001,3077.4,3076.4,5.4384]
[1720579883650,0.30094334,3077.4,3076.4,5.4384]
[1720579884999,0.07023333,3077.4,3076.5,0.55]
[1720579885205,0.07023333,3077.4,3076.5,3.55]
[1720579885517,2.3338,3077.8,3076.5,3.55]
[1720579885518,0.07024168,3077.3,3076.5,3.55]
[1720579885715,2.3338,3077.8,3076.6,0.89884]
[1720579885911,0.07024168,3077.7,3076.7,0.55]
[1720579887552,0.07024168,3077.7,3076.8,2.4662]
[1720579887751,0.07024168,3077.7,3076.9,0.55]
[1720579887901,0.07028894,3077.6,3076.8,2.4662]
[1720579888103,0.5468,3077.8,3076.8,2.76782]
[1720579888407,0.07028894,3077.7,3076.8,2.76782]
[1720579889130,5.468,3077.9,3076.8,2.76782]
[1720579889326,0.07028894,3077.6,3076.9,0.331782]
[1720579889529,3.0148,3077.9,3076.9,0.331782]
[1720579889530,0.07028894,3077.5,3076.9,0.331782]
[1720579889842,2.468,3077.9,3076.9,0.331782]
[1720579890145,0.2468,3077.8,3076.9,0.331782]
[1720579890353,0.2468,3077.8,3076.8,2.4662]
[1720579890509,0.07028894,3077.7,3076.8,2.4662]
[1720579891250,0.07028894,3077.7,3076.5,3.0]
[1720579891417,0.05000008,3077.6,3076.4,3.0]
[1720579891626,2.4906,3077.5,3076.5,0.565589]
[1720579891831,2.56099173,3077.5,3076.5,0.565589]
[1720579892624,2.56099173,3077.5,3076.6,0.55]
[1720579895258,0.3405559,3077.4,3076.6,0.55]
[1720579895570,0.07038063,3077.3,3076.6,0.55]
[1720579896430,0.07038063,3077.3,3076.6,0.9615589]
[1720579896841,0.12038071,3077.3,3076.6,0.9615589]
[1720579897041,0.12038071,3077.3,3076.6,0.4115589]
[1720579897042,2.3705,3077.2,3076.6,0.4115589]
[1720579897225,2.3705,3077.2,3076.5,0.565589]
[1720579897425,0.07038063,3077.1,3076.5,0.565589]
[1720579897662,0.07038063,3077.1,3076.3,3.28839]
[1720579902069,0.07038063,3077.1,3076.4,0.55]
[1720579902270,2.3705,3077.3,3076.4,0.55]
[1720579902439,0.07023058,3077.0,3076.5,2.3159]
[1720579902647,2.3705,3077.3,3076.6,0.83659]
[1720579902843,0.07023058,3076.9,3076.6,0.83659]
[1720579903045,2.3705,3077.3,3076.6,0.83659]